bitfinex/quotes_SOLUSD_20250527
["timestamp","ask_amount","ask_price","bid_price","bid_amount"]
[1748347898307,4.81231951,176.63,176.56,12.2491344]
[1748347898308,12.2491344,176.61,176.56,12.2491344]
[1748347899323,12.2491344,176.61,176.56,10.7855704]
[1748347899533,7.6430957,176.63,176.55,22.3291344]
[1748347899534,12.2491344,176.6,176.55,22.3291344]
[1748347899832,4.81313701,176.6,176.55,22.3291344]
[1748347901018,4.81313701,176.6,176.56,12.2491344]
[1748347901539,17.06227141,176.6,176.55,22.3291344]
[1748347903720,1.98187994,176.6,176.57,12.2491344]
[1748347903921,1.98187994,176.6,176.59,12.2491344]
[1748347905540,2.83077619,176.63,176.59,12.2491344]
[1748347905747,2.83077619,176.63,176.62,12.2491344]
[1748347906047,2.83077619,176.63,176.57,0.14216157]
[1748347906248,2.83077619,176.63,176.62,12.2491344]
[1748347911448,2.83077619,176.63,176.62,11.8832434]
[1748347919967,1.41530797,176.64,176.62,11.8832434]
[1748347920141,1.41530797,176.64,176.63,12.2491344]
[1748347921270,4.81068537,176.69,176.63,12.2491344]
[1748347921468,4.81068537,176.69,176.6,101.19129597]
[1748347921652,4.81068537,176.69,176.66,12.2491344]
[1748347922451,4.81068537,176.69,176.6,88.94216157]
[1748347922655,4.81068537,176.69,176.65,12.2491344]
[1748347923572,4.81068537,176.69,176.6,88.8]
[1748347923573,19.8896347,176.69,176.6,88.8]
[1748347923760,12.2491344,176.68,176.6,88.8]
[1748347923960,12.2491344,176.68,176.62,12.2491344]
[1748347924256,12.2491344,176.68,176.63,12.2491344]
[1748347925047,7.6405003,176.69,176.65,12.2491344]
[1748347925247,7.6405003,176.69,176.66,12.2491344]
[1748347925505,7.6405003,176.69,176.67,12.2491344]
[1748347928573,7.6405003,176.69,176.66,12.2491344]
[1748347931056,7.6405003,176.69,176.67,12.2491344]
[1748347931879,7.6405003,176.69,176.6,119.84094483]
[1748347931880,1.41490746,176.69,176.68,12.2491344]
[1748347933984,2.82934942,176.72,176.68,12.2491344]
[1748347934183,2.82934942,176.72,176.71,12.2491344]
[1748347935959,2.82934942,176.72,176.71,12.2491344]
[1748347937852,2.82934942,176.72,176.65,18.79181043]
[1748347938055,2.82934942,176.72,176.71,12.2491344]
[1748347940472,2.82934942,176.72,176.65,112.09275202]
[1748347940662,2.82934942,176.72,176.71,12.2491344]
[1748347941659,2.82934942,176.72,176.7,12.2491344]
[1748347944985,2.82934942,176.72,176.71,12.2491344]
[1748347946906,2.82934942,176.72,176.7,12.2491344]
[1748347947112,1.41458722,176.73,176.72,0.14216157]
[1748347947306,1.41458722,176.73,176.72,12.39129597]
[1748347948789,4.80769228,176.8,176.72,12.39129597]
[1748347949785,4.80769228,176.8,176.7,110.4891344]
[1748347949786,7.63574657,176.8,176.7,98.38216157]
[1748347949981,7.63574657,176.8,176.76,12.2491344]
[1748347951277,7.63574657,176.8,176.72,0.14216157]
[1748347951606,7.63574657,176.8,176.76,12.2491344]
[1748347953126,7.63574657,176.8,176.78,12.2491344]
[1748347953628,7.63574657,176.8,176.72,0.14216157]
[1748347953629,7.63574657,176.8,176.77,12.2491344]
[1748347954190,7.63574657,176.8,176.72,0.14216157]
[1748347954387,7.63574657,176.8,176.76,12.2491344]
[1748347957511,7.63574657,176.8,176.77,12.2491344]
[1748347958089,7.63574657,176.8,176.78,12.2491344]
[1748347959707,7.63574657,176.8,176.79,12.2491344]
[1748347961300,7.63574657,176.8,176.72,0.14216157]
[1748347961516,38.2491344,176.77,176.72,0.14216157]
[1748347961701,38.2491344,176.77,176.72,12.2491344]
[1748347961910,26.0,176.77,176.72,12.2491344]
[1748347962088,38.2491344,176.77,176.72,12.2491344]
[1748347963413,1.98008598,176.76,176.72,12.2491344]
[1748347963616,4.80878025,176.76,176.72,12.2491344]
[1748347964916,4.80878025,176.76,176.7,9.44]
[1748347965088,4.80878025,176.76,176.71,12.2491344]
[1748347965287,4.80878025,176.76,176.72,12.2491344]
[1748347967297,4.80878025,176.76,176.71,12.2491344]
[1748347968612,38.2491344,176.73,176.65,9.44]
[1748347968816,38.2491344,176.73,176.68,12.2491344]
[1748347970222,1.98053417,176.72,176.68,12.2491344]
[1748347970804,4.80986871,176.72,176.65,9.44]
[1748347971423,17.05900311,176.72,176.65,9.44]
[1748347971591,4.80986871,176.72,176.66,12.2491344]
[1748347971789,17.05900311,176.72,176.67,12.2491344]
[1748347973420,17.05900311,176.72,176.66,12.2491344]
[1748347973602,12.2491344,176.71,176.66,12.2491344]
[1748347974328,1.98075834,176.7,176.65,9.44]
[1748347974625,1.98075834,176.7,176.66,12.2491344]
[1748347975200,1.98075834,176.7,176.65,9.44]
[1748347975396,1.98075834,176.7,176.66,12.2491344]
[1748347975613,40.22989274,176.7,176.65,21.6891344]
[1748347978403,40.22989274,176.7,176.66,12.2491344]
[1748347978404,1.98075834,176.7,176.66,12.2491344]
[1748347979824,4.81041312,176.7,176.65,9.44]
[1748347980028,4.81041312,176.7,176.65,21.6891344]
[1748347980528,17.05954752,176.7,176.65,21.6891344]
[1748347981599,17.05954752,176.7,176.65,9.44]
[1748347981804,38.2491344,176.68,176.62,12.2491344]
[1748347982011,38.2491344,176.68,176.61,12.2491344]
[1748347982012,12.2491344,176.66,176.61,12.2491344]
[1748347982216,12.2491344,176.65,176.6,9.64]
[1748347983135,1.98143115,176.64,176.6,9.64]
[1748347983714,1.98143115,176.64,176.63,12.2491344]
[1748347983919,1.98143115,176.64,176.62,12.2491344]
[1748347984115,1.98143115,176.64,176.6,9.64]
[1748347984526,1.98143115,176.64,176.6,21.8891344]
[1748347984737,1.98143115,176.64,176.6,9.64]
[1748347985006,1.98143115,176.64,176.6,21.8891344]
[1748347985429,1.98143115,176.64,176.61,12.2491344]
[1748347986644,1.98143115,176.64,176.63,12.2491344]
[1748347987538,1.41530797,176.64,176.6,9.64]
[1748347989046,38.25315121,176.63,176.6,9.64]
[1748347989217,26.0,176.63,176.57,88.8]
[1748347989419,1.98165552,176.62,176.57,88.8]
[1748347990636,1.41546823,176.62,176.57,88.8]
[1748347993075,1.41546823,176.62,176.55,179.86]
[1748347994942,1.41546823,176.62,176.56,0.14216157]
[1748347995248,1.41546823,176.62,176.55,179.86]
[1748347995845,26.0,176.61,176.55,91.06]
[1748347996540,38.25315121,176.61,176.55,91.06]
[1748347996844,38.25315121,176.61,176.55,9.64]
[1748347997063,4.81313701,176.6,176.55,9.64]
[1748347998355,4.81313701,176.6,176.5,5.89490757]
[1748347998356,12.25315121,176.56,176.5,5.89490757]
[1748347998559,26.0,176.57,176.5,5.752746]
[1748347998763,12.25315121,176.55,176.5,5.752746]
[1748347998933,12.25315121,176.56,176.5,5.752746]
[1748347999138,1.98244123,176.55,176.5,5.752746]
[1748347999442,14.23559244,176.55,176.5,5.752746]
[1748347999648,12.25315121,176.54,176.5,5.752746]
[1748347999843,12.25315121,176.53,176.5,5.752746]
[1748348000051,12.25315121,176.52,176.5,5.752746]
[1748348000436,12.25315121,176.51,176.5,5.752746]
[1748348001236,12.81969134,176.51,176.5,5.752746]
[1748348001561,38.81969134,176.51,176.5,5.752746]
[1748348002660,26.56654013,176.51,176.5,5.752746]
[1748348002837,38.81969134,176.51,176.5,5.752746]
[1748348004359,26.56654013,176.51,176.5,5.752746]
[1748348004556,38.81969134,176.51,176.5,5.752746]
[1748348004746,26.56654013,176.51,176.5,5.752746]
[1748348004950,38.81969134,176.51,176.5,5.752746]
[1748348009744,12.81969134,176.51,176.5,5.752746]
[1748348011141,86.35665298,176.51,176.5,4.086146]
[1748348011347,86.35665298,176.51,176.5,2.419546]
[1748348013568,55.31169134,176.51,176.5,2.419546]
[1748348015474,45.05169134,176.51,176.5,2.419546]
[1748348015676,38.81969134,176.51,176.5,2.419546]
[1748348016596,26.56654013,176.51,176.5,2.419546]
[1748348016798,38.81969134,176.51,176.5,2.419546]
[1748348017291,26.56654013,176.51,176.5,2.419546]
[1748348018363,38.81969134,176.51,176.5,2.419546]
[1748348018761,51.07284255,176.51,176.5,2.419546]
[1748348018964,71.50395298,176.51,176.5,2.419546]
[1748348019486,46.99765056,176.51,176.5,2.419546]
[1748348019786,71.50395298,176.51,176.5,2.419546]
[1748348020379,46.99765056,176.51,176.5,2.419546]
[1748348020678,71.50395298,176.51,176.5,2.419546]
[1748348024501,59.25080177,176.51,176.5,2.419546]
[1748348025609,2.20584013,176.51,176.5,2.419546]
[1748348025909,12.81969134,176.51,176.5,2.419546]
[1748348026115,26.56654013,176.51,176.5,2.419546]
[1748348026298,38.81969134,176.51,176.5,2.419546]
[1748348029610,26.56654013,176.51,176.5,2.419546]
[1748348029811,38.81969134,176.51,176.5,2.419546]
[1748348031511,26.56654013,176.51,176.5,2.419546]
[1748348032012,38.81969134,176.51,176.5,2.419546]
[1748348032385,0.56654013,176.51,176.5,2.419546]
[1748348032801,38.81969134,176.51,176.5,2.419546]
[1748348033802,0.56654013,176.51,176.5,2.419546]
[1748348034611,26.56654013,176.51,176.5,2.419546]
[1748348037906,12.25315121,176.54,176.5,2.419546]
[1748348038098,26.0,176.53,176.5,2.419546]
[1748348038296,26.0,176.53,176.5,3.930846]
[1748348038497,26.0,176.52,176.5,3.930846]
[1748348039913,0.56654013,176.51,176.5,3.930846]
[1748348042388,0.56654013,176.51,176.5,2.419546]
[1748348042614,12.81969134,176.51,176.5,2.419546]
[1748348043120,0.56654013,176.51,176.5,2.419546]
[1748348046116,12.81969134,176.51,176.5,2.419546]
[1748348046708,0.56654013,176.51,176.5,2.419546]
[1748348048614,12.81969134,176.51,176.5,2.419546]
[1748348050315,0.56654013,176.51,176.5,2.419546]
[1748348050494,12.81969134,176.51,176.5,2.419546]
[1748348053304,0.56654013,176.51,176.5,2.419546]
[1748348053907,12.81969134,176.51,176.5,2.419546]
[1748348054398,0.56654013,176.51,176.5,2.419546]
[1748348056630,12.81969134,176.51,176.5,2.419546]
[1748348067841,1.98255352,176.54,176.5,2.419546]
[1748348068172,12.25315121,176.51,176.5,2.419546]
[1748348069245,12.25315121,176.52,176.5,2.419546]
[1748348070026,0.56654013,176.51,176.5,2.419546]
[1748348072053,0.56650804,176.52,176.5,2.419546]
[1748348072547,12.25315121,176.51,176.5,2.419546]
[1748348074131,12.81969134,176.51,176.5,2.419546]
[1748348075820,25.07284255,176.51,176.5,2.419546]
[1748348076026,78.22810481,176.51,176.46,4.09200531]
[1748348076241,12.25315121,176.47,176.46,4.09200531]
[1748348077851,12.81981976,176.47,176.46,4.09200531]
[1748348088042,0.56666855,176.47,176.46,4.09200531]
[1748348088362,12.81981976,176.47,176.46,4.09200531]
[1748348089344,0.56666855,176.47,176.46,4.09200531]
[1748348089548,12.81981976,176.47,176.46,4.09200531]
[1748348090137,0.56666855,176.47,176.46,4.09200531]
[1748348090443,12.81981976,176.47,176.46,4.09200531]
[1748348101859,0.56666855,176.47,176.46,4.09200531]
[1748348102345,12.81981976,176.47,176.46,4.09200531]
[1748348104774,0.56666855,176.47,176.46,4.09200531]
[1748348105154,0.56666855,176.47,176.46,5.72510531]
[1748348106650,2.83270069,176.51,176.46,5.72510531]
[1748348107059,15.0858519,176.51,176.46,5.72510531]
[1748348107278,2.83270069,176.51,176.46,5.72510531]
[1748348107479,15.0858519,176.51,176.46,5.72510531]
[1748348107854,4.81450013,176.55,176.46,5.72510531]
[1748348108086,12.25315121,176.54,176.47,18.79181043]
[1748348108381,17.06765134,176.55,176.47,18.79181043]
[1748348108754,4.81450013,176.55,176.49,18.79181043]
[1748348108965,17.06765134,176.55,176.48,6.2905]
[1748348109185,12.25315121,176.54,176.48,6.2905]
[1748348109865,4.81450013,176.55,176.48,6.2905]
[1748348110070,17.06765134,176.55,176.48,6.2905]
[1748348112486,2.8320589,176.55,176.48,6.2905]
[1748348112658,15.08521011,176.55,176.48,6.2905]
[1748348112858,2.8320589,176.55,176.48,6.2905]
[1748348113454,2.8320589,176.55,176.49,28.59181043]
[1748348114577,4.81450013,176.55,176.49,28.59181043]
[1748348116484,12.25315121,176.54,176.49,9.8]
[1748348116657,1.98266583,176.53,176.49,9.8]
[1748348119377,2.8320589,176.55,176.49,9.8]
[1748348119566,12.25315121,176.54,176.49,9.8]
[1748348119959,2.8320589,176.55,176.49,9.8]
[1748348120160,12.25315121,176.54,176.49,9.8]
[1748348121180,2.8320589,176.55,176.49,9.8]
[1748348121406,12.25315121,176.54,176.49,9.8]
[1748348121698,1.98266583,176.53,176.49,9.8]
[1748348129191,12.25315121,176.54,176.49,9.8]
[1748348129882,2.8320589,176.55,176.49,9.8]
[1748348130079,12.25315121,176.54,176.49,9.8]
[1748348130996,1.98266583,176.53,176.49,9.8]
[1748348133501,1.98266583,176.53,176.47,18.79181043]
[1748348133690,1.98266583,176.53,176.47,28.45181043]
[1748348133879,4.81504559,176.53,176.47,28.45181043]
[1748348137978,4.24856964,176.53,176.47,28.45181043]
[1748348138910,0.56644386,176.54,176.48,0.14216157]
[1748348139125,0.56644386,176.54,176.51,1.6218]
[1748348139285,0.56644386,176.54,176.51,37.2618]
[1748348140290,14.24442812,176.59,176.51,37.2618]
[1748348140823,12.26243594,176.54,176.47,11.218]
[1748348142033,4.81504559,176.53,176.47,11.218]
[1748348143482,1.98266583,176.53,176.48,18.79181043]
[1748348144100,1.41618988,176.53,176.48,18.79181043]
[1748348144306,1.41618988,176.53,176.48,23.36998068]
[1748348144486,1.41618988,176.53,176.48,18.79181043]
[1748348145788,12.26243594,176.57,176.48,23.33456842]
[1748348146322,17.07611811,176.58,176.48,112.13456842]
[1748348146505,4.81368217,176.58,176.48,112.13456842]
[1748348146703,1.98210442,176.58,176.48,117.80092987]
[1748348146907,1.98210442,176.58,176.5,18.79181043]
[1748348147830,1.41578887,176.58,176.5,18.79181043]
[1748348151436,12.26243594,176.6,176.5,18.79181043]
[1748348152043,12.26243594,176.59,176.5,18.79181043]
[1748348152551,12.26243594,176.6,176.5,18.79181043]
[1748348152735,17.07530043,176.61,176.5,107.59181043]
[1748348153858,4.81286449,176.61,176.5,107.59181043]
[1748348154051,4.81286449,176.61,176.52,18.79181043]
[1748348154215,4.81286449,176.61,176.53,9.54]
[1748348154914,4.24664514,176.61,176.53,9.54]
[1748348155429,1.41554838,176.61,176.54,18.79181043]
[1748348156648,13.67798432,176.61,176.54,18.64964886]
[1748348156938,13.67798432,176.61,176.53,9.54]
[1748348157125,14.24420367,176.61,176.53,9.54]
[1748348158131,17.07530043,176.61,176.53,9.54]
[1748348158632,12.26243594,176.6,176.53,9.54]
[1748348158840,12.26243594,176.6,176.53,18.79181043]
[1748348159038,12.26243594,176.59,176.51,11.1496]
[1748348159236,12.26243594,176.59,176.51,9.54]
[1748348159641,4.81286449,176.61,176.51,9.54]
[1748348159642,12.26243594,176.6,176.51,9.54]
[1748348160948,4.81340958,176.59,176.51,9.54]
[1748348161319,17.07584552,176.59,176.51,9.54]
[1748348162947,4.81340958,176.59,176.52,18.79181043]
[1748348164427,2.8314174,176.59,176.52,18.79181043]
[1748348166629,4.81340958,176.59,176.52,18.79181043]
[1748348166838,1.98199218,176.59,176.52,107.59181043]
[1748348168634,2.83109676,176.61,176.52,107.59181043]
[1748348170462,2.83109676,176.61,176.53,1.6027]
[1748348171134,1.98165552,176.62,176.54,18.79181043]
[1748348171742,1.98165552,176.62,176.55,35.62]
[1748348172532,1.41546823,176.62,176.55,35.62]
[1748348173957,1.41546823,176.62,176.55,124.42]
[1748348174341,1.41546823,176.62,176.56,18.79181043]
[1748348174542,1.41546823,176.62,176.58,18.79181043]
[1748348175348,2.83061594,176.64,176.58,18.79181043]
[1748348178171,1.41522785,176.65,176.58,18.79181043]
[1748348180678,12.26243594,176.61,176.57,9.54]
[1748348181462,12.26243594,176.61,176.52,9.54]
[1748348181660,12.26243594,176.6,176.52,9.54]
[1748348181858,12.26243594,176.6,176.53,18.79181043]
[1748348182074,12.26243594,176.59,176.52,9.54]
[1748348182457,4.81368217,176.58,176.52,9.54]
[1748348185658,17.07611811,176.58,176.52,9.54]
[1748348187877,12.26243594,176.57,176.52,9.54]
[1748348188075,12.26243594,176.56,176.52,9.54]
[1748348188591,0.56641178,176.55,176.52,9.54]
[1748348190767,1.98240701,176.56,176.52,9.54]
[1748348192901,1.41602731,176.56,176.52,9.54]
[1748348197399,1.41602731,176.56,176.53,12.26606168]
[1748348197619,1.41602731,176.56,176.52,9.54]
[1748348197907,1.41602731,176.56,176.52,21.80606168]
[1748348199381,1.98240701,176.56,176.52,21.80606168]
[1748348200190,1.98240701,176.56,176.53,12.26606168]
[1748348200393,1.98240701,176.56,176.54,12.26606168]
[1748348200584,1.98240701,176.56,176.52,9.54]
[1748348200792,1.98240701,176.56,176.52,21.80606168]
[1748348200974,14.24846869,176.56,176.52,9.54]
[1748348201377,1.98240701,176.56,176.52,9.54]
[1748348203199,1.98240701,176.56,176.53,12.26606168]
[1748348204279,1.98240701,176.56,176.52,9.54]
[1748348204280,1.98240701,176.56,176.54,12.26606168]
[1748348204674,1.98240701,176.56,176.52,9.54]
[1748348205183,1.41602731,176.56,176.52,21.80606168]
[1748348207703,1.41602731,176.56,176.53,12.26606168]
[1748348208604,1.41602731,176.56,176.52,9.54]
[1748348210319,1.98240701,176.56,176.52,9.54]
[1748348211725,1.98240701,176.56,176.53,12.26606168]
[1748348212613,1.41602731,176.56,176.52,9.54]
[1748348212784,0.56631555,176.58,176.53,18.79181043]
[1748348212984,0.56631555,176.58,176.53,107.59181043]
[1748348214116,1.98165552,176.62,176.53,107.59181043]
[1748348217824,1.98165552,176.62,176.55,18.79181043]
[1748348219015,1.41546823,176.62,176.55,18.79181043]
[1748348222998,15.09625635,176.64,176.55,18.79181043]
[1748348223328,12.26564041,176.63,176.55,18.79181043]
[1748348225104,4.81259199,176.62,176.55,18.79181043]
[1748348225303,17.0782324,176.62,176.55,18.79181043]
[1748348227606,17.07302187,176.62,176.57,12.26042988]
[1748348230935,12.26042988,176.61,176.56,12.26042988]
[1748348232029,4.81313701,176.6,176.53,107.59181043]
[1748348232330,4.81313701,176.6,176.56,12.26042988]
[1748348232716,17.07356689,176.6,176.55,12.26042988]
[1748348232916,12.26042988,176.58,176.53,12.26042988]
[1748348233806,12.26042988,176.59,176.52,9.54]
[1748348234030,12.26042988,176.59,176.54,12.26042988]
[1748348234341,9.27019408,176.6,176.54,12.26042988]
[1748348234342,1.98210442,176.58,176.54,12.26042988]
[1748348235326,4.81368217,176.58,176.52,9.54]
[1748348235620,4.81368217,176.58,176.54,12.26042988]
[1748348236209,17.07411205,176.58,176.53,12.26042988]
[1748348236541,17.07411205,176.58,176.52,9.54]
[1748348236753,12.26042988,176.57,176.52,21.80042988]
[1748348237271,17.07411205,176.58,176.53,12.26042988]
[1748348237938,17.07411205,176.58,176.52,9.54]
[1748348238258,17.07411205,176.58,176.52,21.80042988]
[1748348238454,17.07411205,176.58,176.52,9.54]
[1748348238758,17.07411205,176.58,176.52,21.80042988]
[1748348239557,12.26042988,176.57,176.52,21.80042988]
[1748348240655,4.24736662,176.58,176.52,21.80042988]
[1748348240876,12.26042988,176.57,176.52,21.80042988]
[1748348242857,1.98232895,176.56,176.52,21.80042988]
[1748348243230,1.98232895,176.56,176.53,12.26042988]
[1748348244860,1.41594925,176.56,176.53,12.26042988]
[1748348247249,1.41594925,176.56,176.52,21.80042988]
[1748348248446,1.41594925,176.56,176.53,12.26042988]
[1748348253880,1.41594925,176.56,176.52,21.80042988]
[1748348257360,1.98232895,176.56,176.52,21.80042988]
[1748348257884,1.98232895,176.56,176.52,9.54]
[1748348259677,1.98232895,176.56,176.52,21.80042988]
[1748348260067,1.98232895,176.56,176.52,17.39170477]
[1748348260267,1.98232895,176.56,176.52,7.85170477]
[1748348260981,1.98232895,176.56,176.54,7.85170477]
[1748348261185,1.98199218,176.59,176.55,7.85170477]
[1748348261361,1.98199218,176.59,176.57,7.85170477]
[1748348261764,1.98199218,176.59,176.56,7.85170477]
[1748348261964,1.98199218,176.59,176.56,12.26230258]
[1748348262859,1.98199218,176.59,176.57,12.26230258]
[1748348263270,1.4157087,176.59,176.58,12.26230258]
[1748348265160,1.4157087,176.59,176.57,12.26230258]
[1748348265370,1.4157087,176.59,176.56,9.5]
[1748348265563,13.67801128,176.59,176.56,9.5]
[1748348265777,1.4157087,176.59,176.56,9.5]
[1748348268065,1.98199218,176.59,176.56,9.5]
[1748348274285,14.24429476,176.59,176.56,9.5]
[1748348277090,17.07571216,176.59,176.54,38.26230258]
[1748348279168,17.07571216,176.59,176.54,26.0]
[1748348279691,12.26230258,176.57,176.54,26.0]
[1748348281298,0.5663797,176.56,176.54,26.0]
[1748348282490,1.98221668,176.57,176.54,26.0]
[1748348284079,9.83258545,176.57,176.54,26.0]
[1748348287391,1.98221668,176.57,176.54,26.0]
[1748348287886,7.85036877,176.58,176.54,26.0]
[1748348290100,0.56634762,176.57,176.54,26.0]
[1748348290883,0.56634762,176.57,176.54,33.85036877]
[1748348292383,1.98218448,176.58,176.54,33.85036877]
[1748348294803,2.8314174,176.59,176.54,7.85036877]
[1748348294994,10.68178617,176.59,176.54,7.85036877]
[1748348296090,12.66377835,176.59,176.54,7.85036877]
[1748348297485,1.98221668,176.57,176.53,7.85036877]
[1748348298786,1.98221668,176.57,176.52,9.48]
[1748348298986,4.8139548,176.57,176.52,17.33036877]
[1748348301092,7.85036877,176.53,176.46,13.57200531]
[1748348301397,7.85036877,176.51,176.46,21.42237408]
[1748348301999,12.2759399,176.51,176.46,25.84794521]
[1748348302801,5.80710171,176.56,176.5,12.2759399]
[1748348303002,1.98244123,176.55,176.51,12.2759399]
[1748348303207,1.98244123,176.55,176.51,26.0]
[1748348303421,1.98244123,176.55,176.54,12.2759399]
[1748348303719,1.98244123,176.55,176.51,38.2759399]
[1748348304221,14.25838113,176.55,176.5,38.2759399]
[1748348304886,17.09044003,176.55,176.5,12.2759399]
[1748348305519,12.2759399,176.53,176.49,26.0]
[1748348305902,12.2759399,176.54,176.49,38.2759399]
[1748348307617,1.98266583,176.53,176.49,38.2759399]
[1748348308492,0.56654013,176.51,176.49,38.2759399]
[1748348309419,3.55720295,176.5,176.49,38.2759399]
[1748348309621,1.98266583,176.53,176.49,38.2759399]
[1748348311088,3.55704969,176.52,176.5,12.2759399]
[1748348311290,3.55693533,176.51,176.5,12.2759399]
[1748348311503,3.55693533,176.51,176.49,26.0]
[1748348311504,0.56654013,176.51,176.49,38.2759399]
[1748348312394,3.55705202,176.5,176.49,38.2759399]
[1748348312619,0.56654013,176.51,176.49,38.2759399]
[1748348313094,3.55705202,176.5,176.49,26.0]
[1748348313290,0.56654013,176.51,176.49,26.0]
[1748348314500,17.09098549,176.53,176.47,26.0]
[1748348314821,12.2759399,176.51,176.46,13.57200531]
[1748348315042,4.81504559,176.53,176.46,4.09200531]
[1748348315043,12.2759399,176.48,176.46,4.09200531]
[1748348315346,12.2759399,176.48,176.37,6.5569]
[1748348315347,25.39945651,176.47,176.4,4.05235804]
[1748348315503,12.2759399,176.42,176.4,4.05235804]
[1748348315829,12.2759399,176.44,176.39,26.0]
[1748348316001,3.55277595,176.43,176.35,58.44328102]
[1748348316201,12.2759399,176.43,176.35,58.44328102]
[1748348316527,1.98412698,176.4,176.36,12.2759399]
[1748348316730,3.55305248,176.39,176.36,38.2759399]
[1748348316901,1.98412698,176.4,176.36,38.2759399]
[1748348317507,3.55308368,176.39,176.36,38.2759399]
[1748348317713,1.98412698,176.4,176.36,38.2759399]
[1748348317898,3.55308368,176.39,176.36,38.2759399]
[1748348318225,1.98412698,176.4,176.36,26.0]
[1748348318226,3.55309967,176.38,176.36,26.0]
[1748348318440,1.98412698,176.4,176.36,38.2759399]
[1748348318607,0.5669577,176.38,176.36,26.0]
[1748348319816,3.54416811,176.37,176.36,38.2759399]
[1748348320071,0.5669577,176.38,176.37,44.64964886]
[1748348320353,1.4170315,176.43,176.38,0.14216157]
[1748348320354,0.56682915,176.42,176.38,0.14216157]
[1748348320519,1.4170315,176.43,176.41,38.2759399]
[1748348320821,1.4170315,176.43,176.4,12.2759399]
[1748348321021,3.54314413,176.42,176.4,12.2759399]
[1748348321240,1.4170315,176.43,176.4,12.2759399]
[1748348321430,1.4170315,176.43,176.4,38.2759399]
[1748348322154,1.4170315,176.43,176.41,12.2759399]
[1748348322326,3.54314548,176.42,176.41,12.2759399]
[1748348322516,1.98345233,176.46,176.41,12.2759399]
[1748348322840,1.98345233,176.46,176.42,12.2759399]
[1748348323232,3.54314485,176.45,176.41,21.7559399]
[1748348323430,3.54314888,176.44,176.41,21.7559399]
[1748348323729,1.98345233,176.46,176.42,26.0]
[1748348324640,0.5667649,176.44,176.42,38.2759399]
[1748348324816,0.5667649,176.44,176.42,26.0]
[1748348325421,3.54447039,176.43,176.42,26.0]
[1748348325638,4.11126741,176.43,176.42,26.0]
[1748348325835,0.56679702,176.43,176.42,26.0]
[1748348326141,4.1108415,176.43,176.41,9.48]
[1748348326438,3.54404448,176.42,176.41,9.48]
[1748348326644,3.54359324,176.42,176.41,9.48]
[1748348326846,3.5435944,176.42,176.41,9.48]
[1748348327140,3.5435944,176.42,176.41,21.7559399]
[1748348327342,0.56679702,176.43,176.41,21.7559399]
[1748348327749,0.56682915,176.42,176.41,21.7559399]
[1748348327927,4.11043118,176.42,176.41,21.7559399]
[1748348328127,0.56682915,176.42,176.41,21.7559399]
[1748348328733,4.11034773,176.42,176.41,21.7559399]
[1748348328937,7.65386631,176.42,176.41,21.7559399]
[1748348329249,4.11034773,176.42,176.41,40.40558876]
[1748348330136,4.11034773,176.42,176.41,28.12964886]
[1748348330325,4.11034773,176.42,176.41,40.40558876]
[1748348331144,4.11034773,176.42,176.41,28.12964886]
[1748348331429,4.11034773,176.42,176.41,40.40558876]
[1748348332952,4.11034773,176.42,176.41,40.54775033]
[1748348333161,3.54351858,176.42,176.41,40.54775033]
[1748348333329,4.11034773,176.42,176.41,40.54775033]
[1748348333848,4.11034773,176.42,176.41,40.40558876]
[1748348334630,4.11034773,176.42,176.41,66.40558876]
[1748348335542,4.11034773,176.42,176.41,35.48]
[1748348335744,4.11034773,176.42,176.41,47.7559399]
[1748348337326,4.11034773,176.42,176.41,35.48]
[1748348337526,4.11034773,176.42,176.41,47.7559399]
[1748348338754,4.11034773,176.42,176.41,35.48]
[1748348338956,4.11034773,176.42,176.41,47.7559399]
[1748348340734,4.11034773,176.42,176.41,21.7559399]
[1748348343835,4.11034773,176.42,176.41,9.48]
[1748348344335,20.6375063,176.42,176.36,9.46]
[1748348344643,12.2759399,176.41,176.36,21.7359399]
[1748348344857,12.2759399,176.41,176.36,9.46]
[1748348345068,12.2759399,176.41,176.36,21.7359399]
[1748348345366,1.98412698,176.4,176.36,21.7359399]
[1748348345989,12.2759399,176.39,176.36,9.46]
[1748348346539,12.2759399,176.37,176.35,13.50328102]
[1748348346766,4.8185941,176.4,176.35,13.50328102]
[1748348346966,12.2759399,176.38,176.35,13.50328102]
[1748348347262,12.2759399,176.36,176.35,13.50328102]
[1748348347441,1.984577,176.36,176.31,50.14854335]
[1748348347645,1.984577,176.36,176.32,12.2759399]
[1748348348137,1.984577,176.36,176.31,50.14854335]
[1748348348549,1.984577,176.36,176.32,12.2759399]